bitfinex/quotes_ETHUSD_20241003
["timestamp","ask_amount","ask_price","bid_price","bid_amount"]
[1727926887444,0.12778382,2395.6,2395.4,0.76]
[1727926887646,3.33918,2395.8,2395.4,0.76]
[1727926887848,0.12778146,2395.5,2395.4,0.76]
[1727926888021,3.33918,2395.8,2395.4,0.76]
[1727926888538,0.12778448,2395.7,2395.4,0.76]
[1727926888735,3.33918,2395.8,2395.4,0.76]
[1727926888929,0.12778448,2395.7,2395.4,0.76]
[1727926889130,6.67801,2396.0,2395.4,4.09972]
[1727926889320,0.12778976,2395.9,2395.4,4.09972]
[1727926889545,3.46689976,2395.9,2395.4,4.09972]
[1727926892022,0.12778976,2395.9,2395.4,0.76]
[1727926892226,0.12778976,2395.9,2395.5,3.33957]
[1727926892524,0.12778976,2395.9,2395.6,3.33934]
[1727926892746,3.0,2396.1,2395.7,4.13602]
[1727926892930,0.12780425,2396.0,2395.7,4.13602]
[1727926894167,0.12780425,2396.0,2395.7,0.7968]
[1727926896745,0.12780425,2396.0,2395.6,3.33934]
[1727926899667,0.12780425,2396.0,2395.6,6.67872]
[1727926900410,0.12780425,2396.0,2395.6,3.33934]
[1727926900577,0.12780425,2396.0,2395.7,3.33931]
[1727926901215,0.12780425,2396.0,2395.8,3.33915]
[1727926901365,0.12780425,2396.0,2395.9,0.7593]
[1727926901570,6.33854,2396.3,2395.9,0.7593]
[1727926901797,0.12793148,2396.2,2395.9,0.7593]
[1727926901997,6.33854,2396.3,2395.9,0.7593]
[1727926902222,0.12793204,2396.2,2395.9,0.7593]
[1727926902410,6.33854,2396.3,2395.9,0.7593]
[1727926902572,3.46655204,2396.2,2395.9,0.7593]
[1727926904393,6.80528204,2396.2,2395.9,0.7593]
[1727926904601,3.33876,2396.1,2395.9,0.7593]
[1727926904971,0.12792564,2396.0,2395.9,0.7593]
[1727926905801,3.33862,2396.2,2395.7,3.3393]
[1727926906029,0.12792969,2396.1,2395.7,4.91745098]
[1727926906341,0.12792969,2396.1,2395.7,4.1228]
[1727926909153,0.12792969,2396.1,2395.7,0.7835]
[1727926909313,0.12792969,2396.1,2395.4,4.97039104]
[1727926909654,3.33974,2395.4,2395.0,1.63078104]
[1727926909937,7.6070498,2395.8,2395.1,3.34007]
[1727926909938,0.1237407,2395.3,2395.1,3.34007]
[1727926910138,3.33947,2395.6,2395.1,3.34007]
[1727926910439,0.12373834,2395.2,2395.1,3.34007]
[1727926910645,6.67905,2395.6,2395.1,3.34007]
[1727926910844,0.12373834,2395.2,2395.0,8.24055847]
[1727926911003,3.33947,2395.6,2395.0,8.24055847]
[1727926911200,0.12373598,2395.1,2395.0,4.90036847]
[1727926911527,3.33947,2395.6,2395.0,4.90036847]
[1727926911838,3.33947,2395.6,2395.1,1.03820193]
[1727926912039,0.12374288,2395.5,2395.1,1.03820193]
[1727926912245,0.12374288,2395.5,2395.2,3.33999]
[1727926912599,3.33936,2395.7,2395.2,3.33999]
[1727926912799,0.12355426,2395.4,2395.2,3.33999]
[1727926913006,3.33936,2395.7,2395.3,0.77182619]
[1727926913250,6.33927,2395.8,2395.2,3.33999]
[1727926913409,0.12338479,2395.6,2395.3,4.09724]
[1727926913606,6.33927,2395.8,2395.3,4.09724]
[1727926913811,0.12338299,2395.5,2395.4,3.33972]
[1727926914103,3.33876,2396.1,2395.6,3.33944]
[1727926914349,3.33876,2396.1,2395.7,0.333944]
[1727926914960,3.3389,2396.0,2395.7,0.333944]
[1727926915418,3.33871,2396.2,2395.7,0.333944]
[1727926915619,3.33877,2396.1,2395.7,0.333944]
[1727926916057,3.33871,2396.2,2395.8,0.8263]
[1727926916216,3.33871,2396.2,2395.8,1.2762684]
[1727926916650,6.67744,2396.2,2395.8,1.2762684]
[1727926917230,3.33878,2396.1,2395.8,1.2762684]
[1727926917436,3.33878,2396.1,2395.8,0.8263]
[1727926919526,6.67741,2396.2,2395.8,0.8263]
[1727926919719,3.3387,2396.2,2395.8,0.8263]
[1727926919924,3.33891,2396.0,2395.8,0.8263]
[1727926920444,3.33884,2396.1,2395.8,0.8263]
[1727926922545,3.3389,2396.0,2395.8,0.8263]
[1727926923165,3.3389,2396.0,2395.6,0.7948]
[1727926923361,3.3389,2396.0,2395.6,1.70994138]
[1727926923668,0.11552357,2395.9,2395.6,1.70994138]
[1727926924149,3.33889,2396.0,2395.6,0.7948]
[1727926924339,3.3387,2396.2,2395.6,0.7948]
[1727926924340,3.3387,2396.2,2395.7,3.33921]
[1727926924670,0.11553351,2396.1,2395.7,3.33921]
[1727926924831,0.11553351,2396.1,2395.8,0.87411898]
[1727926925228,3.45429351,2396.1,2395.8,0.87411898]
[1727926925462,3.45429351,2396.1,2395.6,4.13412]
[1727926925625,3.45429351,2396.1,2395.6,7.47349]
[1727926926637,3.45429351,2396.1,2395.6,4.13412]
[1727926926924,3.45429351,2396.1,2395.6,7.4735]
[1727926927148,3.45429351,2396.1,2395.7,0.74735]
[1727926927753,3.33891,2396.0,2395.7,0.74735]
[1727926927970,3.45435351,2396.1,2395.6,4.13423]
[1727926928174,0.11573655,2395.9,2395.6,4.13423]
[1727926928323,3.33882,2396.1,2395.6,4.13423]
[1727926928940,0.11573021,2396.0,2395.6,4.13423]
[1727926929137,0.11573021,2396.0,2395.6,5.13671348]
[1727926930645,3.45463021,2396.0,2395.6,0.7948]
[1727926931059,3.33903,2395.9,2395.6,0.7948]
[1727926931261,3.45469433,2395.9,2395.6,0.7948]
[1727926931738,0.11566433,2395.9,2395.6,0.7948]
[1727926932171,0.11566433,2395.9,2395.6,1.79730548]
[1727926932379,3.33872,2396.2,2395.6,0.7948]
[1727926932538,0.11559885,2395.8,2395.6,4.13412]
[1727926932976,3.33878,2396.1,2395.6,4.13412]
[1727926933279,0.11559798,2395.7,2395.6,4.13412]
[1727926933451,3.33878,2396.1,2395.6,4.13412]
[1727926933776,0.11559521,2395.7,2395.6,5.13658748]
[1727926934088,3.33878,2396.1,2395.6,5.13658748]
[1727926934245,3.33862,2396.2,2395.7,3.33923]
[1727926934446,0.11174236,2396.0,2395.7,3.33923]
[1727926934640,3.33862,2396.2,2395.7,4.18681175]
[1727926934847,0.11174055,2395.9,2395.7,4.18681175]
[1727926935087,3.33862,2396.2,2395.7,3.33923]
[1727926935373,0.11174344,2395.8,2395.7,3.33923]
[1727926935573,3.33862,2396.2,2395.7,3.33923]
[1727926935786,0.11175108,2396.1,2395.7,3.33923]
[1727926935995,3.33862,2396.2,2395.7,3.33923]
[1727926936366,0.11174929,2396.0,2395.7,3.33923]
[1727926936539,0.11175165,2396.1,2395.7,4.086565]
[1727926936740,0.11175165,2396.1,2395.6,4.13412]
[1727926936952,0.11175165,2396.1,2395.6,7.47348]
[1727926937497,0.11175165,2396.1,2395.7,3.3393]
[1727926939048,0.11175165,2396.1,2395.6,0.7948]
[1727926939243,0.11175165,2396.1,2395.5,0.87338104]
[1727926939244,3.33929,2395.8,2395.4,1.66638104]
[1727926939486,0.55,2396.2,2395.5,3.33948]
[1727926939487,3.4507217,2396.0,2395.5,3.33948]
[1727926939798,3.33897,2396.0,2395.5,3.97111126]
[1727926940202,0.10808356,2395.9,2395.5,3.97111126]
[1727926940497,0.10808356,2395.9,2395.6,0.56374923]
[1727926940705,0.10808356,2395.9,2395.6,3.90317923]
[1727926940900,3.33875,2396.1,2395.6,3.90317923]
[1727926941105,0.10808233,2395.8,2395.6,3.90317923]
[1727926941313,3.0,2396.3,2395.8,3.33911]
[1727926941465,3.0,2396.3,2395.7,0.7711]
[1727926941466,7.387,2396.5,2396.2,0.7711]
[1727926941817,3.33788,2396.8,2396.2,0.7711]
[1727926941818,3.33788,2396.8,2396.3,3.33846]
[1727926942015,6.67574,2396.8,2396.3,3.33846]
[1727926942169,6.67574,2396.8,2396.2,4.19204575]
[1727926942503,3.33796,2396.7,2396.2,4.19204575]
[1727926943203,3.33828,2396.5,2396.2,0.7711]
[1727926943547,3.33807,2396.6,2396.2,0.7711]
[1727926943668,3.33807,2396.6,2396.2,0.82465166]
[1727926943873,3.33807,2396.6,2396.2,1.36777181]
[1727926944567,3.33807,2396.6,2396.2,1.39767691]
[1727926944999,3.338,2396.7,2396.2,1.39767691]
[1727926945311,3.33772,2396.9,2396.5,0.7963]
[1727926945518,3.0,2397.0,2396.7,1.2678598]
[1727926945865,3.0,2397.0,2396.5,5.4023398]
[1727926946103,6.33751,2397.0,2396.5,6.27639578]
[1727926946311,3.0,2397.0,2396.5,6.27639578]
[1727926946868,6.33757,2397.0,2396.5,6.27640578]
[1727926947107,6.33757,2397.0,2396.6,0.08344279]
[1727926948497,3.33757,2397.0,2396.6,0.9317609]
[1727926949308,3.33765,2396.9,2396.6,0.9317609]
[1727926949492,3.33778,2396.8,2396.5,0.7963]
[1727926949801,3.33765,2396.9,2396.5,0.7963]
[1727926950690,6.6754,2396.9,2396.5,0.7963]
[1727926950885,3.33778,2396.8,2396.5,1.209762]
[1727926951324,3.33778,2396.8,2396.5,0.7963]
[1727926952127,3.33765,2396.9,2396.5,0.7963]
[1727926953736,0.09796875,2396.8,2396.5,0.7963]
[1727926957842,3.33792,2396.7,2396.3,0.7929]
[1727926958050,0.09800197,2396.7,2396.3,0.7929]
[1727926958249,3.3377,2396.9,2396.4,3.33833]
[1727926958612,0.09472882,2396.6,2396.4,0.68747449]
[1727926958756,3.33782,2396.8,2396.3,4.13135]
[1727926959266,3.3377,2396.9,2396.3,4.13135]
[1727926959267,0.09473118,2396.7,2396.4,3.33834]
[1727926959561,6.67546,2396.9,2396.4,3.33834]
[1727926959763,0.09472658,2396.6,2396.4,3.33834]
[1727926959925,3.3377,2396.9,2396.4,4.35966949]
[1727926960126,0.09472422,2396.5,2396.4,4.35966949]
[1727926960339,3.3377,2396.9,2396.4,4.35966949]
[1727926960533,0.09471708,2396.5,2396.4,4.35966949]
[1727926960737,3.3377,2396.9,2396.4,4.35966949]
[1727926961275,0.09472514,2396.8,2396.5,0.51525695]
[1727926964577,0.09472514,2396.8,2396.3,0.7929]
[1727926964578,3.43254514,2396.8,2396.3,0.7929]
[1727926964778,3.43254514,2396.8,2396.3,4.13133]
[1727926965156,3.43254514,2396.8,2396.4,3.33831]
[1727926965358,0.09472514,2396.8,2396.4,3.33831]
[1727926965596,0.09472514,2396.8,2396.4,4.085283]
[1727926965768,3.33767,2396.9,2396.4,4.085283]
[1727926965974,0.09473204,2396.7,2396.4,4.085283]
[1727926966170,0.09473439,2396.8,2396.4,4.085283]
[1727926966462,3.33767,2396.9,2396.4,4.085283]
[1727926966659,0.09473204,2396.7,2396.4,7.423523]
[1727926966895,3.33767,2396.9,2396.4,7.423523]
[1727926967089,0.09472968,2396.6,2396.4,7.423523]
[1727926967301,3.33767,2396.9,2396.5,0.8216423]
[1727926967500,0.09469486,2396.5,2396.4,3.33824]
[1727926967697,3.33767,2396.9,2396.4,3.33824]
[1727926967884,0.09469261,2396.5,2396.4,3.33824]
[1727926968084,3.33767,2396.9,2396.4,4.21184397]
[1727926968356,0.09469261,2396.5,2396.3,7.46976]
[1727926968559,3.33782,2396.8,2396.3,0.7929]
[1727926968792,0.09469081,2396.4,2396.3,0.7929]
[1727926969177,3.33793,2396.7,2396.3,0.7929]
[1727926969371,0.09470178,2396.4,2396.3,0.7929]
[1727926969615,6.33764,2397.0,2396.5,3.33814]
[1727926969900,9.67528,2397.0,2396.5,3.33814]
[1727926970113,6.33764,2397.0,2396.5,3.33814]
[1727926971769,9.67522,2397.0,2396.5,3.33814]
[1727926972494,6.33758,2397.0,2396.4,6.67654]
[1727926973014,9.67519,2397.0,2396.4,6.67654]
[1727926974404,9.67519,2397.0,2396.4,7.13662216]
[1727926974903,6.33758,2397.0,2396.6,4.16233]
[1727926975108,3.33758,2397.0,2396.6,4.16233]
[1727926975275,6.67522,2397.0,2396.6,0.8243]
[1727926975480,3.33758,2397.0,2396.6,0.8243]
[1727926976183,3.33766,2396.9,2396.6,0.8243]
[1727926977434,3.33758,2397.0,2396.6,0.8243]
[1727926983841,0.09467815,2396.9,2396.6,0.8243]
[1727926989445,0.09467815,2396.9,2396.6,4.16233]
[1727926989742,0.09467815,2396.9,2396.6,1.70769132]
[1727926989916,0.09467815,2396.9,2396.6,0.8243]
[1727926991023,0.09467815,2396.9,2396.4,1.66378104]
[1727926991024,3.33792,2396.7,2396.4,1.66378104]
[1727926991209,3.3381,2396.6,2396.3,0.87338104]
[1727926991412,3.43281619,2396.6,2396.2,1.65008104]
[1727926992825,3.43281619,2396.6,2396.2,4.98867104]
[1727926993417,0.09471619,2396.6,2396.2,4.98867104]
[1727926994640,0.09471619,2396.6,2396.2,4.11529]
[1727926996703,3.43279619,2396.6,2396.2,0.7767]
[1727926997441,3.43279619,2396.6,2396.1,4.21203104]
[1727926997645,4.69923589,2396.6,2396.1,3.33865]
[1727926997951,3.33826,2396.5,2396.0,1.68498104]
[1727926998246,3.33826,2396.5,2396.1,3.33874]
[1727926998401,0.09457286,2396.4,2396.2,3.3386]
[1727926998797,3.0,2396.6,2396.1,3.33874]
[1727926999032,0.09457106,2396.3,2396.1,3.33874]
[1727926999249,6.33807,2396.6,2396.1,3.33874]
[1727926999414,0.09456963,2396.2,2396.1,3.33874]
[1727926999617,6.33807,2396.6,2396.1,3.33874]
[1727926999817,0.09456963,2396.2,2396.1,3.33874]
[1727927000049,6.33807,2396.6,2396.1,3.33874]
[1727927000248,0.09457019,2396.2,2396.1,3.33874]
[1727927000411,6.33807,2396.6,2396.1,3.33874]
[1727927000611,0.09457019,2396.2,2396.1,3.33874]
[1727927000936,0.09451335,2396.2,2396.1,3.33874]
[1727927001246,6.33807,2396.6,2396.1,3.33874]
[1727927001430,0.09451335,2396.2,2396.1,3.33874]
[1727927001610,6.33807,2396.6,2396.1,3.33874]
[1727927001810,0.09451335,2396.2,2396.1,3.33874]
[1727927002010,6.33807,2396.6,2396.1,3.33874]
[1727927002253,6.33807,2396.6,2396.2,0.415034]
[1727927002410,6.33807,2396.6,2396.1,3.33874]
[1727927005620,3.33821,2396.5,2396.1,3.33874]
[1727927008436,3.33821,2396.5,2396.0,0.8116]
[1727927008437,6.67649,2396.5,2396.0,0.8116]
[1727927008673,4.2664397,2396.6,2396.0,0.8116]
[1727927008847,3.33883,2396.1,2395.6,4.96692104]
[1727927009165,3.33883,2396.1,2395.6,4.09354]
[1727927010152,3.0,2396.3,2395.9,4.14459]
[1727927010360,0.09109226,2396.2,2395.9,4.14459]
[1727927010512,0.09109226,2396.2,2396.0,3.33887]
[1727927010852,3.33837,2396.4,2396.0,3.33887]
[1727927011054,0.0910634,2396.1,2396.0,3.33887]
[1727927011206,3.33837,2396.4,2396.0,4.21387797]
[1727927011405,0.09106432,2396.1,2396.0,3.33887]
[1727927011711,0.09106432,2396.1,2395.9,0.8056]
[1727927011949,6.67678,2396.4,2395.9,0.8056]
[1727927012155,0.09110269,2396.0,2395.9,0.8056]
[1727927012316,6.67678,2396.4,2395.9,0.8056]
[1727927012512,0.09110976,2396.3,2395.9,4.893001]
[1727927014155,3.33861,2396.2,2395.9,0.8056]
[1727927014359,3.33891,2396.0,2395.6,4.09366]
[1727927014525,0.09115977,2395.9,2395.6,4.9243271]
[1727927015531,0.09115977,2395.9,2395.6,0.8306671]
[1727927015845,3.33918,2395.8,2395.4,4.17013]
[1727927016047,3.43038459,2395.7,2395.4,0.8305]
[1727927016252,3.43038459,2395.7,2395.2,4.14262]
[1727927016962,3.43038459,2395.7,2395.2,8.02672354]
[1727927016963,0.09106459,2395.7,2395.2,8.02672354]
[1727927017546,3.33949,2395.6,2395.2,0.8027]
[1727927017772,0.09105763,2395.5,2395.1,4.12467]
[1727927017934,0.09105763,2395.5,2395.1,4.99780097]
[1727927018134,6.67888,2395.7,2395.1,4.99780097]
[1727927018362,0.0909123,2395.6,2395.1,4.99780097]
[1727927019746,3.4303823,2395.6,2395.1,4.99780097]
[1727927022166,0.0909123,2395.6,2395.1,4.99779097]
[1727927022380,0.0909123,2395.6,2395.2,0.8337991]
[1727927023865,3.3396,2395.5,2395.1,0.7846]
[1727927024044,0.08966155,2395.4,2395.1,0.7846]
[1727927025587,0.08966155,2395.4,2395.1,4.12473]
[1727927025756,0.08966155,2395.4,2395.1,5.00621677]
[1727927026075,0.08954278,2395.3,2395.1,5.00621677]
[1727927026250,3.33948,2395.6,2395.1,4.12473]
[1727927026458,0.08954805,2395.5,2395.1,4.12473]
[1727927029570,0.08954805,2395.5,2395.1,0.7846]
[1727927034349,3.42914805,2395.5,2395.1,1.66609577]
[1727927034573,3.42914805,2395.5,2395.1,0.7846]
[1727927036260,0.08954805,2395.5,2395.1,5.3910997]
[1727927036461,0.08954805,2395.5,2395.3,3.33981]
[1727927036779,0.08633356,2395.4,2395.2,3.33994]
[1727927037085,3.33945,2395.6,2395.1,5.3911797]
[1727927037273,3.33945,2395.6,2395.1,5.93030467]
[1727927037600,0.08633592,2395.5,2395.1,5.93030467]
[1727927038569,0.08633592,2395.5,2395.1,3.87926497]
[1727927039292,0.08633592,2395.5,2395.1,0.53912497]
[1727927039494,0.08633592,2395.5,2395.2,3.33999]
[1727927040883,0.08629686,2395.4,2395.2,3.33999]
[1727927041085,3.33946,2395.6,2395.2,3.33999]
[1727927041489,0.08629553,2395.5,2395.2,3.33999]
[1727927041869,6.33932,2395.7,2395.3,0.8145]
[1727927042270,0.08630055,2395.6,2395.3,0.8145]
[1727927043092,3.33967,2395.5,2395.0,6.68037]
[1727927043295,0.08629588,2395.5,2395.0,4.21661097]
[1727927043497,3.33941,2395.7,2395.2,3.34]
[1727927043498,3.33947,2395.6,2395.2,3.34]
[1727927044060,0.08627659,2395.5,2395.2,3.34]
[1727927044290,0.08627659,2395.5,2395.1,4.09834]
[1727927044957,3.42587659,2395.5,2395.1,0.7582]
[1727927047499,3.42587659,2395.5,2395.4,0.7619]
[1727927047500,0.08627659,2395.5,2395.4,0.7619]
[1727927047699,0.08627659,2395.5,2395.4,4.1851112]
[1727927047902,3.0,2395.9,2395.5,4.10147]
[1727927048070,3.0,2395.9,2395.6,3.749587]
[1727927048269,3.0,2395.9,2395.5,4.10147]
[1727927050275,6.33904,2395.9,2395.5,0.7619]
[1727927051676,3.0,2396.1,2395.7,3.33931]
[1727927052510,3.0,2396.1,2395.6,4.6057897]
[1727927053412,6.33879,2396.1,2395.6,4.6057897]
[1727927054946,3.0,2396.1,2395.6,7.9451697]
[1727927055245,6.33878,2396.1,2395.6,5.56357487]
[1727927056315,3.0,2396.1,2395.8,0.8082]
[1727927056939,3.33896,2396.0,2395.8,0.8082]
[1727927057652,3.0,2396.3,2395.8,2.0746397]
[1727927057813,3.33863,2396.2,2395.8,0.8082]
[1727927058145,3.33905,2395.9,2395.6,1.2664397]
[1727927058349,3.33905,2395.9,2395.5,0.8082]
[1727927058520,3.33905,2395.9,2395.5,1.222992]
[1727927058716,0.08646243,2395.8,2395.5,1.222992]
[1727927060056,0.08646243,2395.8,2395.5,4.562532]
[1727927060418,3.33891,2396.0,2395.5,4.562532]
[1727927060644,0.08646007,2395.7,2395.5,4.562532]
[1727927060846,6.67788,2396.0,2395.6,0.91686217]
[1727927061031,6.67788,2396.0,2395.5,1.222992]
[1727927061349,0.08646254,2395.9,2395.5,1.222992]
[1727927063316,0.08646254,2395.9,2395.5,0.8082]
[1727927064095,0.08646254,2395.9,2395.5,4.14778]
[1727927065580,0.08646254,2395.9,2395.6,1.2664397]
[1727927065776,6.33855,2396.3,2395.8,0.7991]
[1727927065997,0.08661284,2396.2,2395.8,0.7991]
[1727927066197,6.33855,2396.3,2395.8,0.7991]
[1727927066515,0.08665591,2396.1,2395.6,5.4049497]
[1727927066813,3.33888,2396.1,2395.6,6.36674677]
[1727927067006,0.08668321,2396.0,2395.6,6.36674677]
[1727927068398,0.08668321,2396.0,2395.6,5.4049497]
[1727927069321,3.42560321,2396.0,2395.5,3.33958]
[1727927069999,0.08668321,2396.0,2395.6,3.33943]
[1727927072518,0.08668321,2396.0,2395.4,5.3955797]
[1727927072725,3.42564321,2396.0,2395.5,3.33949]
[1727927073075,0.08668321,2396.0,2395.6,3.33945]
[1727927074608,6.33871,2396.2,2395.8,0.7611]
[1727927074817,0.08665703,2396.1,2395.8,0.7611]
[1727927075022,0.08665703,2396.1,2395.7,3.33924]
[1727927075439,0.08665703,2396.1,2395.8,3.33914]
[1727927075640,0.08665703,2396.1,2396.0,2.0524397]
[1727927075942,10.72522,2396.5,2396.0,2.0524397]
[1727927075943,3.33822,2396.5,2396.0,5.3912397]
[1727927076237,0.08666225,2396.4,2396.0,5.3912397]
[1727927076543,0.08666225,2396.4,2396.0,6.26426467]
[1727927076745,0.08666225,2396.4,2396.0,2.92546467]
[1727927077041,0.08666225,2396.4,2396.2,1.2664397]
[1727927077224,0.08666225,2396.4,2396.3,4.16388]
[1727927077408,3.33771,2396.9,2396.4,3.33833]
[1727927077741,3.33771,2396.9,2396.5,1.69115798]
[1727927077941,3.33771,2396.9,2396.5,1.2664397]
[1727927079203,6.67547,2396.9,2396.5,1.2664397]
[1727927079391,3.33771,2396.9,2396.5,1.2664397]
[1727927079822,6.67544,2396.9,2396.5,1.2664397]
[1727927080210,3.33771,2396.9,2396.5,1.2664397]
[1727927080800,3.33778,2396.8,2396.5,1.2664397]
[1727927085868,3.33793,2396.7,2396.5,1.2664397]
[1727927086017,3.33793,2396.7,2396.3,0.8254]
[1727927086018,3.33793,2396.7,2396.3,2.0918397]
[1727927086219,3.33793,2396.7,2396.3,2.96872567]
[1727927086637,3.33771,2396.9,2396.3,6.30718567]
[1727927087827,3.33786,2396.8,2396.3,6.30718567]
[1727927088663,0.08715033,2396.7,2396.3,6.30718567]
[1727927088877,0.08715033,2396.7,2396.4,0.96456857]
[1727927089034,3.33786,2396.8,2396.4,0.96456857]
[1727927089670,0.08715146,2396.7,2396.4,0.96456857]
[1727927090053,3.33786,2396.8,2396.4,0.96456857]
[1727927090294,0.08714967,2396.6,2396.4,0.96456857]
[1727927090459,3.33786,2396.8,2396.4,0.96456857]
[1727927090800,3.33786,2396.8,2396.3,2.0918397]
[1727927091010,0.08715202,2396.7,2396.3,2.0918397]
[1727927091166,3.33786,2396.8,2396.3,2.0918397]
[1727927091366,0.08737608,2396.7,2396.3,2.0918397]
[1727927091566,3.33786,2396.8,2396.3,2.0918397]
[1727927091878,0.08737608,2396.7,2396.3,2.0918397]
[1727927092083,0.08737608,2396.7,2396.3,2.96872767]
[1727927092289,3.33786,2396.8,2396.3,2.96872767]
[1727927092595,0.08737495,2396.7,2396.3,2.96872767]
[1727927092801,3.33786,2396.8,2396.3,6.30719767]
[1727927093008,0.08740346,2396.7,2396.3,6.30719767]
[1727927093204,3.33786,2396.8,2396.3,6.30719767]
[1727927093411,0.08740427,2396.7,2396.3,6.30719767]
[1727927093575,3.33786,2396.8,2396.3,6.30719767]
[1727927093778,3.4253454,2396.7,2396.3,2.0918397]
[1727927093982,3.33816,2396.6,2396.0,3.33876]
[1727927094171,3.42558033,2396.5,2396.1,0.7825]
[1727927095379,0.08738033,2396.5,2396.1,4.12113]
[1727927095606,0.08738033,2396.5,2396.2,3.33859]
[1727927095797,0.08738033,2396.5,2396.2,4.24460657]
[1727927097590,3.33793,2396.7,2396.2,5.51104627]
[1727927097793,0.08738156,2396.6,2396.2,5.51104627]
[1727927098172,3.42548156,2396.6,2396.2,2.17245627]
[1727927099697,0.08738156,2396.6,2396.2,2.17245627]
[1727927099906,0.08738156,2396.6,2396.2,4.24454657]
[1727927101118,0.08738156,2396.6,2396.3,3.33847]
[1727927101324,0.08738156,2396.6,2396.5,4.6046397]
[1727927101635,3.0,2397.2,2396.6,0.794]
[1727927101790,3.0,2397.2,2396.8,3.33773]
[1727927101995,3.0,2397.2,2396.7,1.2664397]
[1727927102312,3.0,2397.2,2396.8,3.33778]
[1727927102670,6.33723,2397.2,2396.8,3.33778]
[1727927103516,6.33723,2397.2,2396.7,1.2664397]
[1727927103673,0.07864024,2397.1,2396.7,1.2664397]
[1727927104176,0.07864024,2397.1,2396.8,3.33777]
[1727927104379,0.07864024,2397.1,2396.7,1.2664397]
[1727927105422,0.07864024,2397.1,2396.8,3.33768]
[1727927105621,0.07864024,2397.1,2396.9,4.6040697]
[1727927106926,0.07864024,2397.1,2396.9,1.2664397]
[1727927107798,3.33717,2397.3,2396.9,2.0839397]
[1727927108124,0.07864352,2397.2,2396.9,2.0839397]
[1727927108488,6.67435,2397.3,2396.9,2.0839397]
[1727927109027,0.07872112,2397.2,2396.9,2.0839397]
[1727927109331,6.67435,2397.3,2396.9,2.0839397]
[1727927109626,3.33717,2397.3,2396.9,2.0839397]
[1727927109926,3.41593999,2397.2,2396.9,2.0839397]
[1727927113092,0.07871999,2397.2,2396.9,2.0839397]
[1727927113294,0.07871999,2397.2,2397.1,1.2664397]
[1727927113550,3.33697,2397.4,2396.9,1.44703397]
[1727927113837,3.33697,2397.4,2396.8,3.33777]
[1727927113838,3.33738,2397.1,2396.7,0.7863]
[1727927113992,3.33781,2396.8,2396.3,3.66963825]
[1727927114193,0.07874377,2396.7,2396.3,0.7863]
[1727927114435,3.33781,2396.8,2396.3,0.7863]
[1727927114638,3.4167349,2396.7,2396.3,0.7863]
[1727927116136,0.0787449,2396.7,2396.3,0.7863]
[1727927116301,0.0787449,2396.7,2396.3,0.86975247]
[1727927116495,3.33781,2396.8,2396.3,0.86975247]
[1727927116691,0.07875263,2396.6,2396.3,0.86975247]
[1727927116938,0.07875499,2396.7,2396.3,1.75109569]
[1727927117141,6.67569,2396.8,2396.3,1.75109569]
[1727927117142,0.07874745,2396.5,2396.3,1.75109569]
[1727927117342,3.33781,2396.8,2396.3,1.75109569]
[1727927117492,0.07874566,2396.4,2396.3,1.75109569]
[1727927117697,3.33781,2396.8,2396.3,5.08949569]
[1727927117941,3.33781,2396.8,2396.3,4.1247]
[1727927118110,0.07875329,2396.7,2396.3,4.1247]
[1727927118450,3.33781,2396.8,2396.3,4.1247]
[1727927118742,0.07875386,2396.7,2396.4,4.6047397]
[1727927118924,0.07875386,2396.7,2396.6,5.4054997]
[1727927119102,7.387,2397.2,2396.9,3.33761]
[1727927119297,3.33676,2397.6,2397.1,5.4047897]
[1727927119696,3.33676,2397.6,2397.1,5.4047197]
[1727927120361,3.33676,2397.6,2397.1,2.9500095]
[1727927120559,3.33695,2397.4,2397.1,2.0674397]
[1727927120725,6.33682,2397.5,2397.1,2.0674397]
[1727927120931,3.0,2397.5,2397.1,2.0674397]
[1727927121325,3.0,2397.5,2397.1,2.94167867]
[1727927121528,3.0,2397.5,2397.1,5.01259897]
[1727927121727,3.0,2397.6,2397.1,5.01259897]
[1727927121942,6.33675,2397.6,2397.1,4.13836]
[1727927122667,3.33681,2397.5,2397.1,4.13836]
[1727927123231,6.33667,2397.6,2397.1,7.47565]
[1727927123434,6.33667,2397.6,2397.1,4.885855]
[1727927123648,3.33682,2397.5,2397.1,4.885855]
[1727927124170,6.33673,2397.6,2397.1,4.885855]
[1727927124664,3.33682,2397.5,2397.1,1.548565]
[1727927124969,3.0,2397.6,2397.1,4.885915]
[1727927125335,6.33667,2397.6,2397.1,4.885915]
[1727927125646,3.33667,2397.6,2397.2,0.4885915]
[1727927126357,3.33667,2397.6,2397.1,4.885915]
[1727927128086,3.33667,2397.6,2397.1,8.223265]
[1727927128387,3.33667,2397.6,2397.1,4.885915]
[1727927128557,3.33667,2397.6,2397.1,4.885855]
[1727927129573,3.33667,2397.6,2397.1,8.223145]
[1727927129887,3.33667,2397.6,2397.2,1.09652072]
[1727927130184,3.33681,2397.5,2397.1,4.13829]
[1727927130390,3.33703,2397.4,2397.1,0.801]
[1727927130589,3.33703,2397.4,2396.9,4.14368]
[1727927131985,3.33703,2397.4,2396.9,7.48125]
[1727927132147,3.33703,2397.4,2396.9,8.50358122]
[1727927132348,3.33703,2397.4,2396.9,8.50357122]
[1727927133082,3.33681,2397.5,2396.9,8.50357122]
[1727927133290,6.67372,2397.5,2396.9,8.50357122]
[1727927133793,0.14005507,2397.4,2396.9,8.50357122]
[1727927134085,0.14005507,2397.4,2397.0,1.12456334]
[1727927134253,3.47702507,2397.4,2397.0,1.12456334]
[1727927135292,0.14005507,2397.4,2397.0,4.46197334]
[1727927136490,0.14005507,2397.4,2397.0,3.33741]
[1727927137786,0.09005507,2397.4,2397.0,3.33741]
[1727927137954,0.13839653,2397.4,2397.0,3.33741]
[1727927139295,0.13839653,2397.4,2396.9,4.14365]
[1727927139462,0.13839653,2397.4,2397.0,3.33748]
[1727927142421,0.13839653,2397.4,2397.0,3.33749]
[1727927146430,0.13839653,2397.4,2396.9,4.14365]
[1727927146431,3.33719,2397.3,2396.9,0.8061]